Name,Sub Group,Service Area's,Expense Type,Narrative,Date,Transaction Number,Amount,Supplier Name,Supplier Ref,Period,Year
Allerdale Borough Council,15506,Supplies & Services,Housing & Health Pay Group,Professional Services,06/12/2017,291821,1480.00,Redacted information - included personal information ,A00206,9,2017
Allerdale Borough Council,15506,Supplies & Services,Food and Occupational Health,Professional Services,06/12/2017,291822,279.30,PUBLIC HEALTH ENGLAND,A01839,9,2017
Allerdale Borough Council,12405,Premises,Multi-storey Car Park,Rentals and Lease Charges,06/12/2017,291823,72574.91,SCOOP AM LLP,A02086,9,2017
Allerdale Borough Council,20150,Third Party Payments,Footway Lighting Scheme,General Partnership Service Fees,06/12/2017,291824,9052.23,CUMBRIA CC,A00066,9,2017
Allerdale Borough Council,15501,Supplies & Services,Estates,Consultants Fees,06/12/2017,291825,1470.00,STEVEN SLOCOMBE LTD,A02433,9,2017
Allerdale Borough Council,10501,Employee Costs,Corporate Recruitment,Advertising Vacancies,13/12/2017,291826,750.00,CHART INST OF ENVIRO HEALTH,A00035,9,2017
Allerdale Borough Council,15506,Supplies & Services,Housing & Health Pay Group,Professional Services,06/12/2017,291827,1127.40,THE HOUSING ADVICE COMPANY LTD,A02509,9,2017
Allerdale Borough Council,12203,Premises,Corporate Property Maintenance,Plumbing and Heating Maintenance,06/12/2017,291828,762.00,Redacted information - included personal information ,C00008,9,2017
Allerdale Borough Council,16300,Supplies & Services,Economic Regeneration,Budget-Miscellaneous,06/12/2017,291829,96.00,HER CITI,A00441,9,2017
Allerdale Borough Council,15503,Supplies & Services,Human Resources Pay Group,Court and Tribunal Costs,06/12/2017,291830,350.00,BURNETTS SOLICITORS,A00129,9,2017
Allerdale Borough Council,16150,Supplies & Services,Town Centre Management,General Promotions,06/12/2017,291831,1440.00,POD (NORTH WEST) LIMITED,A01977,9,2017
Allerdale Borough Council,10601,Employee Costs,Training,External Courses & Seminar Fees,06/12/2017,291832,720.00,ADVANCED SAFETY EDUCATION & TRAINING LTD,A02488,9,2017
Allerdale Borough Council,15501,Supplies & Services,Maryport Open Space improvements S106,Consultants Fees,06/12/2017,291833,5235.00,GEO ENVIRONMENTAL ENGINEERING LTD,A02410,9,2017
Allerdale Borough Council,15101,Supplies & Services,Public Convenience Cleaning,Equipment Costs,06/12/2017,291834,21.00,WF HYGIENE & CLEANING SUPPLIES,A01794,9,2017
Allerdale Borough Council,10601,Employee Costs,Environmental Protection,External Courses & Seminar Fees,20/12/2017,291835,58.33,ASSOCIATION OF PORT HEALTH AUTHORITIES,A00808,9,2017
Allerdale Borough Council,16301,Supplies & Services,Sports Development,Reimbursement,06/12/2017,291836,2498.00,WIGTON BATHS TRUST,M00604,9,2017
Allerdale Borough Council,15506,Supplies & Services,Water Quality Signage,Professional Services,06/12/2017,291837,968.00,JJ GROUP (CONTRACTING) LTD,C00038,9,2017
Allerdale Borough Council,14202,Transport,Solway Coast AONB Core Funding,Hire Car and petrol,06/12/2017,291838,59.76,ENTERPRISE RENT A CAR,A01367,9,2017
Allerdale Borough Council,15506,Supplies & Services,Environmental Initiatives,Professional Services,06/12/2017,291839,750.00,Redacted information - included personal information ,A00992,9,2017
Allerdale Borough Council,15101,Supplies & Services,Animal Welfare,Equipment Costs,20/12/2017,291840,58.00,BROXAP LIMITED,C00048,9,2017
Allerdale Borough Council,15103,Supplies & Services,Major Incident Response,Purchase of Materials,06/12/2017,291841,14240.00,J T ATKINSON & SONS LTD,A01652,9,2017
Allerdale Borough Council,15405,Supplies & Services,Elections,Use of External Printers,06/12/2017,291842,1825.00,ADARE SEC LIMITED,A02306,9,2017
Allerdale Borough Council,15405,Supplies & Services,Elections,Use of External Printers,06/12/2017,291843,1825.00,ADARE SEC LIMITED,A02306,9,2017
Allerdale Borough Council,12101,Premises,Corporate Property Maintenance,External Maintenance & Decoration,20/12/2017,291844,197.62,GERDA SECURITY PRODUCTS LIMITED,C00132,9,2017
Allerdale Borough Council,10601,Employee Costs,Training,External Courses & Seminar Fees,06/12/2017,291845,2100.00,GEN 11 ENGINEERING & TECH,A00095,9,2017
Allerdale Borough Council,15508,Supplies & Services,Human Resources Pay Group,Subscriptions,06/12/2017,291846,266.00,SAGE (UK) LTD ,A01911,9,2017
Allerdale Borough Council,26000,Earmarked Reserves,Comms & Marketing,Budget-Expd funded from Reserve,20/12/2017,291847,1302.00,BIRCHAM DYSON BELL LLP,A02323,9,2017
Allerdale Borough Council,15401,Supplies & Services,Corporate Postage and Stationary,General Stationery,20/12/2017,291848,2.54,LYRECO,A00043,9,2017
Allerdale Borough Council,15506,Supplies & Services,Environmental Protection,Professional Services,20/12/2017,291849,563.00,UNITED UTILITIES PLC,A01657,9,2017
Allerdale Borough Council,15401,Supplies & Services,Solway Coast AONB Core Funding,General Stationery,20/12/2017,291850,8.75,LYRECO,A00043,9,2017
Allerdale Borough Council,15401,Supplies & Services,Corporate Postage and Stationary,General Stationery,20/12/2017,291851,61.33,LYRECO,A00043,9,2017
Allerdale Borough Council,12101,Premises,Corporate Property Maintenance,External Maintenance & Decoration,06/12/2017,291852,254.00,PATON BROS SCAFFOLDING LTD,C00009,9,2017
Allerdale Borough Council,15103,Supplies & Services,Workington Nature Partnership,Purchase of Materials,06/12/2017,291853,120.00,FIRST IMAGE SIGNS LTD,A01840,9,2017
Allerdale Borough Council,15101,Supplies & Services,Arts Development,Equipment Costs,20/12/2017,291854,1632.00,ISS WATERERS LANDSCAPE,C00044,9,2017
Allerdale Borough Council,15301,Supplies & Services,Community Services Pay Group,Uniforms,20/12/2017,291855,69.59,ARCO LIMITED - HEAD OFFICE HULL,A00045,9,2017
Allerdale Borough Council,15403,Supplies & Services,Communications and Marketing,Publications and Periodicals,13/12/2017,291856,111.60,P & D NEWSAGENTS,A00237,9,2017
Allerdale Borough Council,12405,Premises,Homelessness,Rentals and Lease Charges,06/12/2017,291857,350.00,CUMBERLAND HOTEL,A02415,9,2017
Allerdale Borough Council,10101,Employee Costs,Legal Services,Basic Pay,20/12/2017,291858,998.75,SELLICK PARTNERSHIP,A01993,9,2017
Allerdale Borough Council,10101,Employee Costs,Legal Services,Basic Pay,20/12/2017,291859,1175.00,SELLICK PARTNERSHIP,A01993,9,2017
Allerdale Borough Council,10603,Employee Costs,Estates,Hire of Training Equipment and Resources,06/12/2017,291860,580.00,THE GOLDEN LION HOTEL,A02502,9,2017
Allerdale Borough Council,14101,Transport,Mayoral Services,Vehicle Leasing,06/12/2017,291861,345.00,Redacted information - included personal information ,A02440,9,2017
Allerdale Borough Council,10401,Employee Costs,Land Charges Service,Agency Staff Costs,06/12/2017,291862,510.60,ADECCO RECRUITMENT,A00188,9,2017
Allerdale Borough Council,12103,Premises,Coastal Protection and Inland Flooding,Grounds Maintenance,06/12/2017,291863,3593.50,ASHCROFT PLANT (CUMBRIA) LTD,C00018,9,2017
Allerdale Borough Council,10401,Employee Costs,Land Charges Service,Agency Staff Costs,06/12/2017,291864,510.60,ADECCO RECRUITMENT,A00188,9,2017
Allerdale Borough Council,15601,Supplies & Services,Corporate Postage and Stationary,Postage,20/12/2017,291865,44.37,LYRECO,A00043,9,2017
Allerdale Borough Council,21100,Transfer Payments,Festivals & Events,Budget-Grants Paid,06/12/2017,291866,25500.00,CN EVENTS MANAGEMENT,A01099,9,2017
Allerdale Borough Council,15403,Supplies & Services,Chief Executive,Publications and Periodicals,13/12/2017,291867,12.60,P & D NEWSAGENTS,A00237,9,2017
Allerdale Borough Council,15514,Supplies & Services,Mayor's Fund,Public Entertainment,13/12/2017,291868,12.60,P & D NEWSAGENTS,A00237,9,2017
Allerdale Borough Council,10601,Employee Costs,Training,External Courses & Seminar Fees,13/12/2017,291869,595.00,INSTITUTE OF CEMETERY & CREMATORIUM MANAGEMENT,A00958,9,2017
Allerdale Borough Council,14101,Transport,Community Services Pay Group,Vehicle Leasing,06/12/2017,291870,367.64,ENTERPRISE RENT A CAR,A01367,9,2017
Allerdale Borough Council,14101,Transport,Community Services Pay Group,Vehicle Leasing,06/12/2017,291871,367.64,ENTERPRISE RENT A CAR,A01367,9,2017
Allerdale Borough Council,14101,Transport,Community Services Pay Group,Vehicle Leasing,06/12/2017,291872,183.82,ENTERPRISE RENT A CAR,A01367,9,2017
Allerdale Borough Council,15800,Supplies & Services,Community Services Pay Group,Budget-Computing Costs (Non Capital),20/12/2017,291873,537.50,METRIC GROUP LTD,A00568,9,2017
Allerdale Borough Council,15102,Supplies & Services,Recycling,Equipment Repair & Maintenance,06/12/2017,291874,801.80,Redacted information - included personal information ,A00176,9,2017
Allerdale Borough Council,10401,Employee Costs,Building Control Pay Group,Agency Staff Costs,06/12/2017,291875,2580.40,SOUTH MILFORD CONSULTING LTD,A02453,9,2017
Allerdale Borough Council,10401,Employee Costs,Building Control Pay Group,Agency Staff Costs,06/12/2017,291876,1998.90,SOUTH MILFORD CONSULTING LTD,A02453,9,2017
Allerdale Borough Council,15402,Supplies & Services,Customer Services Pay Group,Photocopier Charges,06/12/2017,291877,11.48,RICOH UK LTD,A00037,9,2017
Allerdale Borough Council,15812,Supplies & Services,Direct Debits & System Development,Software Development,06/12/2017,291878,362.40,CIVICA UK LIMITED,A00006,9,2017
Allerdale Borough Council,15506,Supplies & Services,Housing & Health Pay Group,Professional Services,06/12/2017,291879,746.20,Redacted information - included personal information ,A02376,9,2017
Allerdale Borough Council,16302,Supplies & Services,Gypsy & Traveller Sites,Room Hire,06/12/2017,291880,25.00,CARNEGIE THEATRE TRUST,R00015,9,2017
Allerdale Borough Council,73102,Holding and Control Accounts,Capital Project Retentions,Holding Accounts General - Expenditure,06/12/2017,291881,23152.45,ASHCROFT PLANT (CUMBRIA) LTD,C00018,9,2017
Allerdale Borough Council,15507,Supplies & Services,Land Charges Service,Searches,06/12/2017,291882,2965.00,CUMBRIA CC ,A00066,9,2017
Allerdale Borough Council,10601,Employee Costs,Economic Regeneration,External Courses & Seminar Fees,06/12/2017,291883,210.00,WESTMINSTER FORUM PROJECTS,A02414,9,2017
Allerdale Borough Council,16302,Supplies & Services,Planning and Development,Room Hire,06/12/2017,291884,267.83,GREENWICH LEISURE LTD (PREV CARLISLE LEISURE),A00136,9,2017
Allerdale Borough Council,15811,Supplies & Services,IT Services,Software Maintenance,06/12/2017,291885,272.00,SAGE (UK) LTD,A01911,9,2017
Allerdale Borough Council,16302,Supplies & Services,Members Services,Room Hire,06/12/2017,291886,97.00,GREENWICH LEISURE LTD (PREV CARLISLE LEISURE),A00136,9,2017
Allerdale Borough Council,12301,Premises,Corporate Property Maintenance,Security,06/12/2017,291887,269.95,G4S SECURE SOLUTIONS,A01597,9,2017
Allerdale Borough Council,15101,Supplies & Services,Public Convenience Cleaning,Equipment Costs,06/12/2017,291888,755.80,INSTOCK (CHANDLERS),A00050,9,2017
Allerdale Borough Council,15203,Supplies & Services,Allerdale Options,Catering Costs and Consumables,06/12/2017,291889,856.35,AL'S KITCHEN LTD,A00187,9,2017
Allerdale Borough Council,14202,Transport,Chief Executive,Hire Car and petrol,06/12/2017,291890,81.22,ENTERPRISE RENT A CAR,A01367,9,2017
Allerdale Borough Council,12402,Premises,Multi Storey Car Park Utilities & Maint,Electricity,06/12/2017,291891,1729.89,TOTAL GAS & POWER LIMITED,X00253,9,2017
Allerdale Borough Council,10110,Employee Costs,Housing & Health Pay Group,Salary Sacrifice,06/12/2017,291892,2430.53,TUSKERDIRECT LTD,A02186,9,2017
Allerdale Borough Council,15804,Supplies & Services,IT Services,Computer Data Lines B.T.,20/12/2017,291893,-385.79,VODAFONE (PREV CABLE & WIRELESS),A00934,9,2017
Allerdale Borough Council,15703,Supplies & Services,IT Services,Call Charges,06/12/2017,291894,528.29,BRITISH TELECOMMUNICATIONS,X00004,9,2017
Allerdale Borough Council,15704,Supplies & Services,IT Services,Mobile Phones,06/12/2017,291895,453.22,VODAFONE,A00551,9,2017
Allerdale Borough Council,15102,Supplies & Services,Parking Services Pay Group,Equipment Repair & Maintenance,13/12/2017,291896,106.45,RELIANCE HIGH-TECH LTD,C00123,9,2017
Allerdale Borough Council,15502,Supplies & Services,Housing & Health Pay Group,Land Registry Fees,,291897,16.00,HM LAND REGISTRY,A00505,9,2017
Allerdale Borough Council,15101,Supplies & Services,Housing Strategic Function,Equipment Costs,06/12/2017,291898,285.00,FIRPRESS PRINTERS,A00063,9,2017
Allerdale Borough Council,15101,Supplies & Services,Housing Strategic Function,Equipment Costs,06/12/2017,291899,75.00,FIRPRESS PRINTERS,A00063,9,2017
Allerdale Borough Council,15405,Supplies & Services,Food and Occupational Health,Use of External Printers,06/12/2017,291900,188.00,COLOPHON PRINT & DESIGN LTD,A01661,9,2017
Allerdale Borough Council,12402,Premises,Multi Storey Car Park Utilities & Maint,Electricity,06/12/2017,291901,1742.54,TOTAL GAS & POWER LIMITED,X00253,9,2017
Allerdale Borough Council,12408,Premises,Public Convenience Cleaning,Water & Sewage,06/12/2017,291902,68.26,UNITED UTILITIES,X00011,9,2017
Allerdale Borough Council,12403,Premises,Corporate Property Maintenance,Gas,06/12/2017,291903,80.40,TOTAL GAS & POWER LIMITED,X00253,9,2017
Allerdale Borough Council,12403,Premises,Corporate Property Maintenance,Gas,06/12/2017,291904,83.08,TOTAL GAS & POWER LIMITED,X00253,9,2017
Allerdale Borough Council,12403,Premises,Corporate Property Maintenance,Gas,06/12/2017,291905,80.40,TOTAL GAS & POWER LIMITED,X00253,9,2017
Allerdale Borough Council,12403,Premises,Corporate Property Maintenance,Gas,06/12/2017,291906,83.08,TOTAL GAS & POWER LIMITED,X00253,9,2017
Allerdale Borough Council,12403,Premises,Corporate Property Maintenance,Gas,06/12/2017,291907,221.27,CORONA ENERGY,X00003,9,2017
Allerdale Borough Council,12403,Premises,Corporate Property Maintenance,Gas,06/12/2017,291908,83.08,TOTAL GAS & POWER LIMITED,X00253,9,2017
Allerdale Borough Council,15601,Supplies & Services,Corporate Postage and Stationary,Postage,06/12/2017,291909,1475.54,ROYAL MAIL LETTERS,X00021,9,2017
Allerdale Borough Council,12403,Premises,Corporate Property Maintenance,Gas,06/12/2017,291910,188.55,CORONA ENERGY,X00003,9,2017
Allerdale Borough Council,12403,Premises,Corporate Property Maintenance,Gas,06/12/2017,291911,171.28,CORONA ENERGY,X00003,9,2017
Allerdale Borough Council,12403,Premises,Corporate Property Maintenance,Gas,06/12/2017,291912,46.04,CORONA ENERGY,X00003,9,2017
Allerdale Borough Council,12403,Premises,Corporate Property Maintenance,Gas,06/12/2017,291913,125.95,CORONA ENERGY,X00003,9,2017
Allerdale Borough Council,12403,Premises,Corporate Property Maintenance,Gas,06/12/2017,291914,288.04,CORONA ENERGY,X00003,9,2017
Allerdale Borough Council,12403,Premises,Corporate Property Maintenance,Gas,06/12/2017,291915,494.67,CORONA ENERGY,X00003,9,2017
Allerdale Borough Council,12408,Premises,Corporate Property Maintenance,Water & Sewage,06/12/2017,291916,112.02,UNITED UTILITIES,X00011,9,2017
Allerdale Borough Council,12408,Premises,Corporate Property Maintenance,Water & Sewage,06/12/2017,291917,24.75,UNITED UTILITIES,X00011,9,2017
Allerdale Borough Council,12408,Premises,Public Convenience Cleaning,Water & Sewage,06/12/2017,291918,47.56,UNITED UTILITIES,X00011,9,2017
Allerdale Borough Council,12408,Premises,Public Convenience Cleaning,Water & Sewage,06/12/2017,291919,41.76,UNITED UTILITIES,X00011,9,2017
Allerdale Borough Council,12408,Premises,Corporate Property Maintenance,Water & Sewage,06/12/2017,291920,11.78,UNITED UTILITIES,X00011,9,2017
Allerdale Borough Council,12403,Premises,Corporate Property Maintenance,Gas,06/12/2017,291921,37.52,TOTAL GAS & POWER LIMITED,X00253,9,2017
Allerdale Borough Council,33121,Income,Off-street - Owned,Excess Charges - Car Parks Income,06/12/2017,291922,2.20,Redacted information - included personal information ,M01274,9,2017
Allerdale Borough Council,33118,Income,Managed Car Parks,Car Parks - Season Tickets Income,06/12/2017,291923,5.00,Redacted information - included personal information ,M01275,9,2017
Allerdale Borough Council,20150,Third Party Payments,Managed Car Parks,General Partnership Service Fees,06/12/2017,291924,1251.85,KESWICK CONVENTION TRUST,A02390,9,2017
Allerdale Borough Council,15101,Supplies & Services,Homelessness,Equipment Costs,06/12/2017,291925,46.59,ALLERDALE BOROUGH COUNCIL,X00034,9,2017
Allerdale Borough Council,16102,Supplies & Services,Tourism Incentive,Regeneration Initiatives,06/12/2017,291926,7492.32,CUMBRIA CC,A00066,9,2017
Allerdale Borough Council,54105,Capital Expenditure,Disabled Facilities Grants,Grants  Private Individuals (Capital),06/12/2017,291927,3340.00,BENNETTS LPM LTD,X00266,9,2017
Allerdale Borough Council,33134,Income,Planning and Development,Pre-Planning Advice,06/12/2017,291928,38.33,Redacted information - included personal information ,M01276,9,2017
Allerdale Borough Council,16003,Supplies & Services,Off-street - Owned,Security of Cash Movements,06/12/2017,291929,624.00,G4S CASH SOLUTIONS (UK) LTD,A02421,9,2017
Allerdale Borough Council,20300,Third Party Payments,Parks and Grounds Maintenance,Budget-Contract Services,20/12/2017,291930,54689.04,ISS WATERERS LANDSCAPE,C00044,9,2017
Allerdale Borough Council,15506,Supplies & Services,Housing & Health Pay Group,Professional Services,13/12/2017,291931,1480.00,Redacted information - included personal information ,A00206,9,2017
Allerdale Borough Council,15506,Supplies & Services,Housing & Health Pay Group,Professional Services,20/12/2017,291932,1480.00,Redacted information - included personal information ,A00206,9,2017
Allerdale Borough Council,10401,Employee Costs,Housing & Health Pay Group,Agency Staff Costs,20/12/2017,291933,242.00,HAYS SPECIALIST RECRUITMENT LTD,A00280,9,2017
Allerdale Borough Council,20150,Third Party Payments,Harrington Harbour,General Partnership Service Fees,06/12/2017,291934,504.00,BLUEFIN INSURANCE SERVICES LTD,A01716,9,2017
Allerdale Borough Council,51101,Capital Expenditure,Car Parks,External Contractor Payments (Capital),06/12/2017,291935,51302.54,ASHCROFT PLANT (CUMBRIA) LTD,C00018,9,2017
Allerdale Borough Council,12301,Premises,Corporate Property Maintenance,Security,06/12/2017,291936,2246.00,G4S SECURE SOLUTIONS,A01597,9,2017
Allerdale Borough Council,12403,Premises,Corporate Property Maintenance,Gas,06/12/2017,291937,10506.44,TOTAL GAS & POWER LIMITED,X00253,9,2017
Allerdale Borough Council,16350,Supplies & Services,Mayors Charity,Miscellaneous Expenses,13/12/2017,291939,323.50,ROTARY CLUB OF BASSENTHWAITE CHARITY,M01271,9,2017
Allerdale Borough Council,20150,Third Party Payments,Managed Car Parks,General Partnership Service Fees,13/12/2017,291940,1776.80,KESWICK CONVENTION TRUST,A02390,9,2017
Allerdale Borough Council,16302,Supplies & Services,Elections,Room Hire,13/12/2017,291941,50.00,ST. PAULS CHURCH HALL,M00127,9,2017
Allerdale Borough Council,16302,Supplies & Services,Elections,Room Hire,13/12/2017,291942,150.00,METHODIST CHURCH KESWICK,M00100,9,2017
Allerdale Borough Council,16302,Supplies & Services,Elections,Room Hire,13/12/2017,291943,300.00,MILLFIELD RETIREMENT HOME,M00101,9,2017
Allerdale Borough Council,16302,Supplies & Services,Elections,Room Hire,13/12/2017,291944,50.00,FRIENDS MEETING HOUSE,M01277,9,2017
Allerdale Borough Council,54105,Capital Expenditure,Disabled Facilities Grants,Grants  Private Individuals (Capital),13/12/2017,291945,3490.00,BLUE FLAME SERVICES LTD,X00213,9,2017
Allerdale Borough Council,54105,Capital Expenditure,Disabled Facilities Grants,Grants  Private Individuals (Capital),13/12/2017,291946,3450.00,BLUE FLAME SERVICES LTD,X00213,9,2017
Allerdale Borough Council,73102,Holding and Control Accounts,Capital Project Retentions,Holding Accounts General - Expenditure,13/12/2017,291947,27497.75,ROLAND HILL (PARSONBY) LTD,C00010,9,2017
Allerdale Borough Council,15405,Supplies & Services,Solway Coast AONB Core Funding,Use of External Printers,13/12/2017,291948,1045.00,Redacted information - included personal information ,A00513,9,2017
Allerdale Borough Council,10601,Employee Costs,Solway Coast AONB Core Funding,External Courses & Seminar Fees,13/12/2017,291949,49.00,NAAONB,A00735,9,2017
Allerdale Borough Council,15401,Supplies & Services,Corporate Postage and Stationary,General Stationery,20/12/2017,291950,89.53,LYRECO,A00043,9,2017
Allerdale Borough Council,15812,Supplies & Services,Revenue,Software Development,13/12/2017,291951,1620.00,CARLISLE CITY COUNCIL,A00161,9,2017
Allerdale Borough Council,16302,Supplies & Services,Members Services,Room Hire,13/12/2017,291952,80.75,ST MICHAELS CHURCH ,A00452,9,2017
Allerdale Borough Council,12201,Premises,Corporate Property Maintenance,Internal Maintenance,13/12/2017,291953,837.00,Redacted information - included personal information ,C00008,9,2017
Allerdale Borough Council,51101,Capital Expenditure,Workington Town Centre Coast Line Featur,External Contractor Payments (Capital),13/12/2017,291954,5943.75,TERRIS ELECTRICAL COMPANY LTD,C00014,9,2017
Allerdale Borough Council,16101,Supplies & Services,Planning and Development,Statutory Notices,13/12/2017,291955,273.36,CUMBRIAN NEWSPAPERS LIMITED,A00869,9,2017
Allerdale Borough Council,16101,Supplies & Services,Planning and Development,Statutory Notices,13/12/2017,291956,389.55,CUMBRIAN NEWSPAPERS LIMITED,A00869,9,2017
Allerdale Borough Council,15501,Supplies & Services,Planning Policy,Consultants Fees,13/12/2017,291957,4930.00,TULLIE HOUSE MUSEUM & ART GALLERY TRUST,A01238,9,2017
Allerdale Borough Council,26000,Earmarked Reserves,Community Safety - Funded,Budget-Expd funded from Reserve,13/12/2017,291958,452.00,CUMBRIA NEIGHBOURHOOD WATCH,A02495,9,2017
Allerdale Borough Council,12101,Premises,Corporate Property Maintenance,External Maintenance & Decoration,13/12/2017,291959,62.27,FAST KEY SERVICES LTD,A01537,9,2017
Allerdale Borough Council,15802,Supplies & Services,ICT Infrastructure Costs,Hardware Maintenance,20/12/2017,291960,2075.00,MILLGATE COMPUTER SYSTEMS,A02314,9,2017
Allerdale Borough Council,15505,Supplies & Services,Licensing Service,Licences,13/12/2017,291961,37.00,Redacted information - included personal information ,M01278,9,2017
Allerdale Borough Council,15505,Supplies & Services,Licensing Service,Licences,13/12/2017,291962,21.00,FRIENDLY FOOD & DRINK LTD,M01279,9,2017
Allerdale Borough Council,15502,Supplies & Services,Legal Services,Land Registry Fees,05/12/2017,291963,70.00,HM LAND REGISTRY,A00505,9,2017
Allerdale Borough Council,15502,Supplies & Services,Housing & Health Pay Group,Land Registry Fees,08/12/2017,291964,138.00,HM LAND REGISTRY,A00505,9,2017
Allerdale Borough Council,51101,Capital Expenditure,Housing Improvement Projects,External Contractor Payments (Capital),20/12/2017,291965,8865.00,PACIFICA HOME SERVICES,C00206,9,2017
Allerdale Borough Council,51101,Capital Expenditure,Central Heating Fund,External Contractor Payments (Capital),20/12/2017,291966,6270.98,PACIFICA HOME SERVICES,C00206,9,2017
Allerdale Borough Council,51101,Capital Expenditure,Housing Improvement Projects,External Contractor Payments (Capital),13/12/2017,291967,3133.87,PACIFICA HOME SERVICES,C00206,9,2017
Allerdale Borough Council,10401,Employee Costs,Housing & Health Pay Group,Agency Staff Costs,20/12/2017,291968,242.00,HAYS SPECIALIST RECRUITMENT LTD,A00280,9,2017
Allerdale Borough Council,15104,Supplies & Services,Bereavement Services,Supplies for Resale,20/12/2017,291969,54.50,GRANART,A00644,9,2017
Allerdale Borough Council,15810,Supplies & Services,Environmental Initiatives,Software Licences,20/12/2017,291970,509.00,BLUESKY INTERNATIONAL LTD,A02504,9,2017
Allerdale Borough Council,15506,Supplies & Services,Food and Occupational Health,Professional Services,13/12/2017,291971,235.00,MPM NORTH WEST LIMITED,A00113,9,2017
Allerdale Borough Council,15813,Supplies & Services,Shared Revs & Bens,Software Miscellaneous,13/12/2017,291972,1642.50,CARLISLE CITY COUNCIL,A00161,9,2017
Allerdale Borough Council,15811,Supplies & Services,ICT Infrastructure Costs,Software Maintenance,20/12/2017,291973,3763.00,PHOENIX SOFTWARE LTD,A00229,9,2017
Allerdale Borough Council,15508,Supplies & Services,IT Services,Subscriptions,13/12/2017,291974,995.00,SOCITM LTD,A00168,9,2017
Allerdale Borough Council,16302,Supplies & Services,Members Services,Room Hire,13/12/2017,291975,252.75,ST MICHAELS CHURCH,A00452,9,2017
Allerdale Borough Council,16302,Supplies & Services,Members Services,Room Hire,13/12/2017,291976,90.00,ST MICHAELS CHURCH,A00452,9,2017
Allerdale Borough Council,16302,Supplies & Services,Members Services,Room Hire,13/12/2017,291977,71.50,ST MICHAELS CHURCH,A00452,9,2017
Allerdale Borough Council,12301,Premises,Corporate Property Maintenance,Security,13/12/2017,291978,60.00,PROTEC SYSTEMS,C00026,9,2017
Allerdale Borough Council,15506,Supplies & Services,Housing & Health Pay Group,Professional Services,13/12/2017,291979,1137.30,THE HOUSING ADVICE COMPANY LTD,A02509,9,2017
Allerdale Borough Council,10401,Employee Costs,Building Control Pay Group,Agency Staff Costs,13/12/2017,291980,2538.05,SOUTH MILFORD CONSULTING LTD,A02453,9,2017
Allerdale Borough Council,15501,Supplies & Services,Estates,Consultants Fees,13/12/2017,291981,3000.00,JAMES ANDREW RECRUITMENT SOLUTIONS LTD,A02339,9,2017
Allerdale Borough Council,15802,Supplies & Services,IT Services,Hardware Maintenance,13/12/2017,291982,2794.75,ELITETELE.COM,A02517,9,2017
Allerdale Borough Council,16005,Supplies & Services,Off-street - Owned,Card Payment Charges,20/12/2017,291983,550.50,3C PAYMENT LIMITED,A02382,9,2017
Allerdale Borough Council,12101,Premises,Corporate Property Maintenance,External Maintenance & Decoration,20/12/2017,291984,1806.67,KEVIN DICKINSON UPVC LTD,X00131,9,2017
Allerdale Borough Council,15601,Supplies & Services,Corporate Postage and Stationary,Postage,13/12/2017,291985,743.90,UK MAIL GROUP PLC,A02371,9,2017
Allerdale Borough Council,15601,Supplies & Services,Corporate Postage and Stationary,Postage,13/12/2017,291986,785.52,UK MAIL GROUP PLC,A02371,9,2017
Allerdale Borough Council,15401,Supplies & Services,Corporate Postage and Stationary,General Stationery,20/12/2017,291987,305.44,LYRECO,A00043,9,2017
Allerdale Borough Council,15601,Supplies & Services,Corporate Postage and Stationary,Postage,13/12/2017,291988,664.64,UK MAIL GROUP PLC,A02371,9,2017
Allerdale Borough Council,10601,Employee Costs,Training,External Courses & Seminar Fees,20/12/2017,291989,850.00,ASTUN TECHNOLOGY LIMITED,A01234,9,2017
Allerdale Borough Council,15506,Supplies & Services,Food and Occupational Health,Professional Services,13/12/2017,291990,235.00,MPM NORTH WEST LIMITED,A00113,9,2017
Allerdale Borough Council,15506,Supplies & Services,Housing & Health Pay Group,Professional Services,20/12/2017,291991,1480.00,Redacted information - included personal information ,A00206,9,2017
Allerdale Borough Council,16102,Supplies & Services,Markets,Regeneration Initiatives,13/12/2017,291992,399.50,LETTERBOX CLEVER CUMBRIA LTD ,A02513,9,2017
Allerdale Borough Council,15101,Supplies & Services,Homelessness,Equipment Costs,20/12/2017,291993,8.24,ARCO LIMITED ,A00045,9,2017
Allerdale Borough Council,15101,Supplies & Services,Homelessness,Equipment Costs,20/12/2017,291994,26.82,ARCO LIMITED,A00045,9,2017
Allerdale Borough Council,15101,Supplies & Services,Homelessness,Equipment Costs,20/12/2017,291995,82.47,ARCO LIMITED ,A00045,9,2017
Allerdale Borough Council,16150,Supplies & Services,Solway AONB Other Projects,General Promotions,13/12/2017,291996,363.25,THOMAS ARMSTRONG - LINDEN/KAYTOOLS,A00091,9,2017
Allerdale Borough Council,16100,Supplies & Services,Building Control - Chargeable,Budget-Advertising and Promotions,13/12/2017,291997,119.25,HUNDAY MANOR HOTEL,A00278,9,2017
Allerdale Borough Council,10110,Employee Costs,Busy Bees Childcare Scheme,Salary Sacrifice,13/12/2017,291998,85.53,COMPUTERSHARE VOUCHER SERVICES,A00991,9,2017
Allerdale Borough Council,10110,Employee Costs,Busy Bees Childcare Scheme,Salary Sacrifice,13/12/2017,291999,1555.00,COMPUTERSHARE VOUCHER SERVICES,A00991,9,2017
Allerdale Borough Council,26000,Earmarked Reserves,Comms & Marketing,Budget-Expd funded from Reserve,13/12/2017,292000,458.00,NICEPOND CREATIVE LTD,A02179,9,2017
Allerdale Borough Council,15101,Supplies & Services,Homelessness,Equipment Costs,13/12/2017,292001,78.00,THE LAUNDRY STUDIO,A00225,9,2017
Allerdale Borough Council,12402,Premises,Industrial Units,Electricity,13/12/2017,292002,20.63,BRITISH GAS,X00039,9,2017
Allerdale Borough Council,12402,Premises,Tenanted Properties,Electricity,13/12/2017,292003,85.52,EON ,X00016,9,2017
Allerdale Borough Council,12402,Premises,Homelessness,Electricity,13/12/2017,292004,71.95,N POWER,X00262,9,2017
Allerdale Borough Council,15804,Supplies & Services,IT Services,Computer Data Lines B.T.,20/12/2017,292005,870.63,VODAFONE (PREV CABLE & WIRELESS),A00934,9,2017
Allerdale Borough Council,15401,Supplies & Services,Building Control - Non-Chargeable,General Stationery,,292006,1027.57,BARCLAYCARD COMMERCIAL,X00207,9,2017
Allerdale Borough Council,15201,Supplies & Services,Leaders Services,Entertainment Of Visitors,13/12/2017,292007,73.30,ALLERDALE BOROUGH COUNCIL,X00034,9,2017
Allerdale Borough Council,54105,Capital Expenditure,Disabled Facilities Grants,Grants  Private Individuals (Capital),13/12/2017,292008,4838.09,L.E.A. BUILDING SERVICES LTD,X00264,9,2017
Allerdale Borough Council,16150,Supplies & Services,"The Hub, Workington Town Centre",General Promotions,13/12/2017,292009,500.00,MARYPORT FESTIVALS LTD,A00338,9,2017
Allerdale Borough Council,16150,Supplies & Services,Town Centre Management,General Promotions,13/12/2017,292010,500.00,MARYPORT FESTIVALS LTD,A00338,9,2017
Allerdale Borough Council,14105,Transport,Community Services Pay Group,"Fuel, Lubricants & Consumables",20/12/2017,292011,486.43,BP OIL UK LTD ,X00022,9,2017
Allerdale Borough Council,14105,Transport,Community Services Pay Group,"Fuel, Lubricants & Consumables",10/01/2018,292012,642.26,BP OIL UK LTD ,X00022,9,2017
Allerdale Borough Council,14105,Transport,Community Services Pay Group,"Fuel, Lubricants & Consumables",10/01/2018,292013,498.83,BP OIL UK LTD ,X00022,9,2017
Allerdale Borough Council,14105,Transport,Community Services Pay Group,"Fuel, Lubricants & Consumables",10/01/2018,292014,601.46,BP OIL UK LTD ,X00022,9,2017
Allerdale Borough Council,14105,Transport,Community Services Pay Group,"Fuel, Lubricants & Consumables",10/01/2018,292015,463.34,BP OIL UK LTD ,X00022,9,2017
Allerdale Borough Council,10101,Employee Costs,Legal Services,Basic Pay,20/12/2017,292016,599.25,SELLICK PARTNERSHIP,A01993,9,2017
Allerdale Borough Council,14101,Transport,Community Services Pay Group,Vehicle Leasing,13/12/2017,292017,320.22,ENTERPRISE RENT A CAR,A01367,9,2017
Allerdale Borough Council,15100,Supplies & Services,Off-street - Managed,"Budget-Equipment, Furniture & Materials",13/12/2017,292018,3365.00,FIRPRESS PRINTERS,A00063,9,2017
Allerdale Borough Council,15503,Supplies & Services,Revenue,Court and Tribunal Costs,13/12/2017,292019,1143.00,HMCTS - WEST CUMBRIA COURT HOUSE,A00275,9,2017
Allerdale Borough Council,15506,Supplies & Services,Legal Services,Professional Services,20/12/2017,292020,14941.64,BEVAN BRITTAN LLP,A02181,9,2017
Allerdale Borough Council,20150,Third Party Payments,Community Safety,General Partnership Service Fees,13/12/2017,292021,1550.00,RED SNAPPER LEARNING LTD,A02489,9,2017
Allerdale Borough Council,15101,Supplies & Services,Environmental Protection,Equipment Costs,20/12/2017,292022,202.00,BRUEL & KJAER UK LTD,A00048,9,2017
Allerdale Borough Council,15102,Supplies & Services,Parking Services Pay Group,Equipment Repair & Maintenance,20/12/2017,292023,19.36,RELIANCE HIGH-TECH LTD,C00123,9,2017
Allerdale Borough Council,15550,Supplies & Services,Licensing Service,General-Service Related Fees,20/12/2017,292024,24.00,ORBIS PROTECT LTD ,A00679,9,2017
Allerdale Borough Council,15500,Supplies & Services,Confidential Waste,Budget-Services,13/12/2017,292025,267.00,J DUFFY LTD T/A PW CONF BUS SERVICES,A01846,9,2017
Allerdale Borough Council,10401,Employee Costs,Land Charges Service,Agency Staff Costs,13/12/2017,292026,510.60,ADECCO RECRUITMENT,A00188,9,2017
Allerdale Borough Council,12101,Premises,Corporate Property Maintenance,External Maintenance & Decoration,13/12/2017,292027,527.93,ENGINEERING (BARB) PIPEWORKS,A00903,9,2017
Allerdale Borough Council,15101,Supplies & Services,Pest Control,Equipment Costs,13/12/2017,292028,20.00,BASIS (REGISTRATION) LTD,A01568,9,2017
Allerdale Borough Council,15501,Supplies & Services,Planning and Development,Consultants Fees,20/12/2017,292029,1000.00,Redacted information - included personal information ,A00348,9,2017
Allerdale Borough Council,20300,Third Party Payments,Parks and Grounds Maintenance,Budget-Contract Services,13/12/2017,292030,54689.04,ISS WATERERS LANDSCAPE,C00044,9,2017
Allerdale Borough Council,12101,Premises,Capital Project Retentions,External Maintenance & Decoration,13/12/2017,292031,206.93,KL VENNING SLATERS LTD,C00180,9,2017
Allerdale Borough Council,12101,Premises,Capital Project Retentions,External Maintenance & Decoration,13/12/2017,292032,343.40,KL VENNING SLATERS LTD,C00180,9,2017
Allerdale Borough Council,15518,Supplies & Services,Housing Strategic Function,Enforcement,13/12/2017,292033,64.00,Redacted information - included personal information ,C00008,9,2017
Allerdale Borough Council,15101,Supplies & Services,Water Quality Signage,Equipment Costs,13/12/2017,292034,2650.00,METEOR COMMUNICATIONS (EUROPE) LTD,A02413,9,2017
Allerdale Borough Council,15101,Supplies & Services,Recycling,Equipment Costs,20/12/2017,292035,10840.64,RPC BPI REFUSE,A00318,9,2017
Allerdale Borough Council,15506,Supplies & Services,Food and Occupational Health,Professional Services,13/12/2017,292036,216.97,MILLCROFT VETERINARY GROUP,A00211,9,2017
Allerdale Borough Council,12303,Premises,Corporate Property Maintenance,Window Cleaning,13/12/2017,292037,410.00,BORDERBRITE LTD,C00155,9,2017
Allerdale Borough Council,12101,Premises,Corporate Property Maintenance,External Maintenance & Decoration,20/12/2017,292038,2404.17,KEVIN DICKINSON UPVC LTD,X00131,9,2017
Allerdale Borough Council,12402,Premises,Corporate Property Maintenance,Electricity,13/12/2017,292039,5.34,N POWER ,X00015,9,2017
Allerdale Borough Council,12402,Premises,Corporate Property Maintenance,Electricity,13/12/2017,292040,-60.45,N POWER ,X00015,9,2017
Allerdale Borough Council,12402,Premises,Corporate Property Maintenance,Electricity,13/12/2017,292041,-49.76,N POWER ,X00015,9,2017
Allerdale Borough Council,12402,Premises,Corporate Property Maintenance,Electricity,13/12/2017,292042,-51.38,N POWER ,X00015,9,2017
Allerdale Borough Council,12402,Premises,Corporate Property Maintenance,Electricity,13/12/2017,292043,-49.75,N POWER ,X00015,9,2017
Allerdale Borough Council,12402,Premises,Corporate Property Maintenance,Electricity,13/12/2017,292044,-51.55,N POWER ,X00015,9,2017
Allerdale Borough Council,12408,Premises,Corporate Property Maintenance,Water & Sewage,13/12/2017,292045,26.55,UNITED UTILITIES ,X00011,9,2017
Allerdale Borough Council,12402,Premises,Car Parks Inspection & Maintenance,Electricity,13/12/2017,292046,87.00,N POWER,X00015,9,2017
Allerdale Borough Council,12402,Premises,Footways,Electricity,13/12/2017,292047,5122.84,N POWER,X00015,9,2017
Allerdale Borough Council,12402,Premises,Corporate Property Maintenance,Electricity,13/12/2017,292048,-51.56,N POWER,X00015,9,2017
Allerdale Borough Council,12402,Premises,Corporate Property Maintenance,Electricity,13/12/2017,292049,-50.40,N POWER,X00015,9,2017
Allerdale Borough Council,12402,Premises,Corporate Property Maintenance,Electricity,13/12/2017,292050,16.35,N POWER,X00015,9,2017
Allerdale Borough Council,12402,Premises,Corporate Property Maintenance,Electricity,13/12/2017,292051,4.42,N POWER,X00015,9,2017
Allerdale Borough Council,12402,Premises,Corporate Property Maintenance,Electricity,13/12/2017,292052,4.51,N POWER,X00015,9,2017
Allerdale Borough Council,12402,Premises,Corporate Property Maintenance,Electricity,13/12/2017,292053,4.41,N POWER,X00015,9,2017
Allerdale Borough Council,12402,Premises,Corporate Property Maintenance,Electricity,13/12/2017,292054,4.51,N POWER,X00015,9,2017
Allerdale Borough Council,12402,Premises,Corporate Property Maintenance,Electricity,13/12/2017,292055,4.52,N POWER,X00015,9,2017
Allerdale Borough Council,12402,Premises,Corporate Property Maintenance,Electricity,13/12/2017,292056,4.42,N POWER,X00015,9,2017
Allerdale Borough Council,10401,Employee Costs,Weekly Collection Support Scheme,Agency Staff Costs,13/12/2017,292057,11250.00,M P HEATH WASTE CONSULTANCY LTD,A02428,9,2017
Allerdale Borough Council,15904,Supplies & Services,Members Services,Training,20/12/2017,292058,425.00,IMPROVEMENT & DEVELOPMENT AGENCY,A00484,9,2017
Allerdale Borough Council,10601,Employee Costs,Training,External Courses & Seminar Fees,20/12/2017,292059,105.00,NORTHSIDE COMMUNITY CENTRE,A01079,9,2017
Allerdale Borough Council,12101,Premises,Corporate Property Maintenance,External Maintenance & Decoration,13/12/2017,292060,38.00,THOMAS ARMSTRONG - CONSTRUCT,C00003,9,2017
Allerdale Borough Council,15101,Supplies & Services,Public Convenience Cleaning,Equipment Costs,20/12/2017,292061,108.48,WF HYGIENE & CLEANING SUPPLIES,A01794,9,2017
Allerdale Borough Council,12309,Premises,Corporate Property Maintenance,Fire and Safety,13/12/2017,292062,148.30,ORIAN SOLUTIONS LTD,A01814,9,2017
Allerdale Borough Council,12301,Premises,Multi Storey Car Park Utilities & Maint,Security,20/12/2017,292063,18.45,G4S SECURE SOLUTIONS,A01597,9,2017
Allerdale Borough Council,20306,Third Party Payments,Maryport Wave,Contract Services-The Wave,13/12/2017,292064,10833.33,GREENWICH LEISURE LTD (PREV CARLISLE LEISURE),A00136,9,2017
Allerdale Borough Council,20305,Third Party Payments,Sports & Leisure Centres,Contract Services-Leisure Centres,13/12/2017,292065,50531.72,GREENWICH LEISURE LTD (PREV CARLISLE LEISURE),A00136,9,2017
Allerdale Borough Council,20305,Third Party Payments,Maryport Wave,Contract Services-Leisure Centres,13/12/2017,292066,8661.92,GREENWICH LEISURE LTD (PREV CARLISLE LEISURE),A00136,9,2017
Allerdale Borough Council,14150,Transport,Gates Travel,General-Council Vehicles (Non-Capital),20/12/2017,292067,1986.98,GATES TRAVEL,A01525,9,2017
Allerdale Borough Council,16302,Supplies & Services,Sports Development,Room Hire,13/12/2017,292068,20.00,ALL SOULS PAROCHIAL CHURC COUNCIL,A02336,9,2017
Allerdale Borough Council,15601,Supplies & Services,Electoral Registration,Postage,13/12/2017,292069,879.76,ROYAL MAIL LETTERS,X00021,9,2017
Allerdale Borough Council,20150,Third Party Payments,Managed Car Parks,General Partnership Service Fees,13/12/2017,292070,905.15,HEARTHSTONE HOMES LTD,A01229,9,2017
Allerdale Borough Council,16300,Supplies & Services,Off-street - Owned,Budget-Miscellaneous,20/12/2017,292071,248.75,COBALT TELEPHONE TECHNOLOGY,A01008,9,2017
Allerdale Borough Council,16001,Supplies & Services,Banking and Interest,Bank Charges and Fees,13/12/2017,292072,17.62,ALLPAY.NET LIMITED,A00714,9,2017
Allerdale Borough Council,16001,Supplies & Services,Banking and Interest,Bank Charges and Fees,13/12/2017,292073,21.10,ALLPAY.NET LIMITED,A00714,9,2017
Allerdale Borough Council,16001,Supplies & Services,Banking and Interest,Bank Charges and Fees,13/12/2017,292074,15.44,ALLPAY.NET LIMITED,A00714,9,2017
Allerdale Borough Council,16001,Supplies & Services,Banking and Interest,Bank Charges and Fees,13/12/2017,292075,15.44,ALLPAY.NET LIMITED,A00714,9,2017
Allerdale Borough Council,16001,Supplies & Services,Banking and Interest,Bank Charges and Fees,13/12/2017,292076,15.44,ALLPAY.NET LIMITED,A00714,9,2017
Allerdale Borough Council,16001,Supplies & Services,Banking and Interest,Bank Charges and Fees,13/12/2017,292077,15.44,ALLPAY.NET LIMITED,A00714,9,2017
Allerdale Borough Council,16001,Supplies & Services,Banking and Interest,Bank Charges and Fees,13/12/2017,292078,68.13,ALLPAY.NET LIMITED,A00714,9,2017
Allerdale Borough Council,16001,Supplies & Services,Banking and Interest,Bank Charges and Fees,13/12/2017,292079,1479.13,ALLPAY.NET LIMITED,A00714,9,2017
Allerdale Borough Council,16001,Supplies & Services,Banking and Interest,Bank Charges and Fees,13/12/2017,292080,26.76,ALLPAY.NET LIMITED,A00714,9,2017
Allerdale Borough Council,16001,Supplies & Services,Banking and Interest,Bank Charges and Fees,13/12/2017,292081,43.32,ALLPAY.NET LIMITED,A00714,9,2017
Allerdale Borough Council,16102,Supplies & Services,Town Centres,Regeneration Initiatives,20/12/2017,292082,10000.00,SILLOTH TOWN COUNCIL,A00615,9,2017
Allerdale Borough Council,15901,Supplies & Services,Members Services,Expenses and Reimbursements,,292083,-77.95,BARCLAYCARD COMMERCIAL,X00207,9,2017
Allerdale Borough Council,14101,Transport,IT Services Pay Group,Vehicle Leasing,20/12/2017,292084,199.00,ARNOLD CLARK FINANCE LIMITED,A01781,9,2017
Allerdale Borough Council,20101,Third Party Payments,Recycling,Cleansing Contract,20/12/2017,292085,302.36,CUMBRIA WASTE MANAGEMENT LTD,A01304,9,2017
Allerdale Borough Council,20101,Third Party Payments,Recycling,Cleansing Contract,20/12/2017,292086,527.04,CUMBRIA WASTE MANAGEMENT LTD,A01304,9,2017
Allerdale Borough Council,20101,Third Party Payments,Recycling,Cleansing Contract,20/12/2017,292087,2884.11,CUMBRIA WASTE MANAGEMENT LTD,A01304,9,2017
Allerdale Borough Council,20101,Third Party Payments,Recycling,Cleansing Contract,20/12/2017,292088,2460.39,CUMBRIA WASTE MANAGEMENT LTD,A01304,9,2017
Allerdale Borough Council,20101,Third Party Payments,Recycling,Cleansing Contract,20/12/2017,292089,2576.46,CUMBRIA WASTE MANAGEMENT LTD,A01304,9,2017
Allerdale Borough Council,20101,Third Party Payments,Recycling,Cleansing Contract,20/12/2017,292090,2441.37,CUMBRIA WASTE MANAGEMENT LTD,A01304,9,2017
Allerdale Borough Council,20101,Third Party Payments,Recycling,Cleansing Contract,20/12/2017,292091,708.43,CUMBRIA WASTE MANAGEMENT LTD,A01304,9,2017
Allerdale Borough Council,10401,Employee Costs,Housing & Health Pay Group,Agency Staff Costs,20/12/2017,292092,242.00,HAYS SPECIALIST RECRUITMENT LTD,A00280,9,2017
Allerdale Borough Council,12409,Premises,Multi-storey Car Park,Buildings and Contents Insurance,20/12/2017,292093,9167.98,SCOOP AM LLP,A02086,9,2017
Allerdale Borough Council,10601,Employee Costs,Training,External Courses & Seminar Fees,20/12/2017,292094,1365.98,COPELAND BOROUGH COUNCIL,A00589,9,2017
Allerdale Borough Council,15506,Supplies & Services,Housing & Health Pay Group,Professional Services,20/12/2017,292095,1134.90,THE HOUSING ADVICE COMPANY LTD,A02509,9,2017
Allerdale Borough Council,12101,Premises,Car Parks Inspection & Maintenance,External Maintenance & Decoration,20/12/2017,292096,978.00,Redacted information - included personal information ,C00008,9,2017
Allerdale Borough Council,12101,Premises,Allerdale House - Internal Works,External Maintenance & Decoration,20/12/2017,292097,7041.25,STOBBARTS LIMITED,C00204,9,2017
Allerdale Borough Council,15501,Supplies & Services,Strategic Acquisition Works,Consultants Fees,20/12/2017,292098,300.00,GREEN SWALLOW NORTH LTD,A02469,9,2017
Allerdale Borough Council,15501,Supplies & Services,Strategic Acquisition Works,Consultants Fees,20/12/2017,292099,2000.00,GREEN SWALLOW NORTH LTD,A02469,9,2017
Allerdale Borough Council,15501,Supplies & Services,Strategic Acquisition Works,Consultants Fees,20/12/2017,292100,420.00,GREEN SWALLOW NORTH LTD,A02469,9,2017
Allerdale Borough Council,54103,Capital Expenditure,Securing Affordable Homes,Grants to  Housing Assoc (Capital),20/12/2017,292101,9483.34,CASTLES & COASTS HOUSING ASSOCIATION LTD,A02465,9,2017
Allerdale Borough Council,15405,Supplies & Services,Communications and Marketing,Use of External Printers,20/12/2017,292102,80.00,FIRPRESS PRINTERS,A00063,9,2017
Allerdale Borough Council,16350,Supplies & Services,Festivals & Events,Miscellaneous Expenses,20/12/2017,292103,462.24,MACS REMOVAL LTD,A00020,9,2017
Allerdale Borough Council,10200,Employee Costs,Head of Community Services,Budget-Employee Expenses,20/12/2017,292104,52.24,FIRPRESS PRINTERS,A00063,9,2017
Allerdale Borough Council,16101,Supplies & Services,Planning and Development,Statutory Notices,20/12/2017,292105,363.58,CUMBRIAN NEWSPAPERS LIMITED,A00869,9,2017
Allerdale Borough Council,16101,Supplies & Services,Planning and Development,Statutory Notices,20/12/2017,292106,273.36,CUMBRIAN NEWSPAPERS LIMITED,A00869,9,2017
Allerdale Borough Council,12101,Premises,Car Parks Inspection & Maintenance,External Maintenance & Decoration,20/12/2017,292107,903.00,Redacted information - included personal information ,C00008,9,2017
Allerdale Borough Council,16150,Supplies & Services,Comms & Marketing,General Promotions,20/12/2017,292108,700.00,CUMBRIAN NEWSPAPERS LIMITED,A00869,9,2017
Allerdale Borough Council,16102,Supplies & Services,Tourism Incentive,Regeneration Initiatives,20/12/2017,292109,3000.00,CN EVENTS MANAGEMENT,A01099,9,2017
Allerdale Borough Council,10501,Employee Costs,Corporate Recruitment,Advertising Vacancies,20/12/2017,292110,71.50,CUMBRIAN NEWSPAPERS LIMITED,A00869,9,2017
Allerdale Borough Council,12309,Premises,Corporate Property Maintenance,Fire and Safety,20/12/2017,292111,95.00,PROTEC SYSTEMS,C00026,9,2017
Allerdale Borough Council,12301,Premises,Multi Storey Car Park Utilities & Maint,Security,20/12/2017,292112,120.00,COMPASS SERVICES GROUP,A00839,9,2017
Allerdale Borough Council,15501,Supplies & Services,Estates,Consultants Fees,20/12/2017,292113,2352.00,STEVEN SLOCOMBE LTD,A02433,9,2017
Allerdale Borough Council,15501,Supplies & Services,Homelessness,Consultants Fees,20/12/2017,292114,40.00,MARYPORT HEALTH SERVICE,A00421,9,2017
Allerdale Borough Council,21150,Transfer Payments,Community Housing Fund,General Grants,20/12/2017,292115,3185.00,ABOVE DERWENT COMMUNITY LAND TRUST LTD,A02519,9,2017
Allerdale Borough Council,10601,Employee Costs,Training,External Courses & Seminar Fees,20/12/2017,292116,400.00,CUMBRIA CC ,A00066,9,2017
Allerdale Borough Council,15506,Supplies & Services,Environmental Protection,Professional Services,20/12/2017,292117,1791.25,VALID CONSULTANCY LTD,A02288,9,2017
Allerdale Borough Council,15101,Supplies & Services,Environmental Protection,Equipment Costs,20/12/2017,292118,112.34,EDEN DISTRICT COUNCIL,A00790,9,2017
Allerdale Borough Council,10401,Employee Costs,Building Control Pay Group,Agency Staff Costs,20/12/2017,292119,1811.10,SOUTH MILFORD CONSULTING LTD,A02453,9,2017
Allerdale Borough Council,16150,Supplies & Services,Town Centre Management,General Promotions,,292120,752.00,ISS WATERERS LANDSCAPE,C00044,9,2017
Allerdale Borough Council,15405,Supplies & Services,Communications and Marketing,Use of External Printers,20/12/2017,292121,66.00,FIRPRESS PRINTERS,A00063,9,2017
Allerdale Borough Council,10101,Employee Costs,Legal Services,Basic Pay,20/12/2017,292122,752.00,SELLICK PARTNERSHIP,A01993,9,2017
Allerdale Borough Council,12101,Premises,Car Parks Inspection & Maintenance,External Maintenance & Decoration,,292123,1013.30,ISS WATERERS LANDSCAPE,C00044,9,2017
Allerdale Borough Council,12202,Premises,Car Parks Inspection & Maintenance,Electrical Repairs and Service,20/12/2017,292124,1638.60,JJ GROUP (CONTRACTING) LTD,C00038,9,2017
Allerdale Borough Council,15501,Supplies & Services,Corporate Transformation,Consultants Fees,20/12/2017,292125,4550.00,Redacted information - included personal information ,A02434,9,2017
Allerdale Borough Council,15203,Supplies & Services,Solway Coast AONB Core Funding,Catering Costs and Consumables,20/12/2017,292126,177.67,THE GOLF HOTEL,A00749,9,2017
Allerdale Borough Council,12101,Premises,Corporate Property Maintenance,External Maintenance & Decoration,20/12/2017,292127,221.00,WF SUPPORT SERVICES LTD,C00013,9,2017
Allerdale Borough Council,15506,Supplies & Services,Housing & Health Pay Group,Professional Services,20/12/2017,292128,1080.00,THE HOUSING ADVICE COMPANY LTD,A02509,9,2017
Allerdale Borough Council,15904,Supplies & Services,Members Services,Training,20/12/2017,292129,1697.00,CENTRE FOR PUBLIC SCRUTINY,A00203,9,2017
Allerdale Borough Council,16350,Supplies & Services,Homelessness,Miscellaneous Expenses,20/12/2017,292130,485.00,THE GRISDALES CLIENT ACCOUNT,M00009,9,2017
Allerdale Borough Council,54105,Capital Expenditure,Cluster of Empty Homes,Grants  Private Individuals (Capital),20/12/2017,292131,500.00,Redacted information - included personal information ,M00642,9,2017
Allerdale Borough Council,54105,Capital Expenditure,Cluster of Empty Homes,Grants  Private Individuals (Capital),20/12/2017,292132,1500.00,Redacted information - included personal information ,X00267,9,2017
Allerdale Borough Council,20108,Third Party Payments,Corporate Management,Audit Fees,20/12/2017,292133,12032.00,GRANT THORNTON UK LLP,A01736,9,2017
Allerdale Borough Council,15101,Supplies & Services,Purchase of Equipment (Enveloper),Equipment Costs,28/12/2017,292134,1839.79,TWOFOLD LTD ,A00317,9,2017
Allerdale Borough Council,12405,Premises,Customer Services Pay Group,Rentals and Lease Charges,20/12/2017,292135,2916.66,COCKERMOUTH TOWN COUNCIL,A00586,9,2017
Allerdale Borough Council,15603,Supplies & Services,Document Management Pay Group,Franking Machine Costs,20/12/2017,292136,300.00,THE MAILING ROOM (TMR EXECUTIVE AGENCY LTD),A00733,9,2017
Allerdale Borough Council,12307,Premises,Corporate Property Maintenance,Fixtures and Fittings,20/12/2017,292137,136.65,THYSSENKRUPP ELEVATOR UK LTD,C00072,9,2017
Allerdale Borough Council,15601,Supplies & Services,Corporate Postage and Stationary,Postage,20/12/2017,292138,692.43,UK MAIL GROUP PLC,A02371,9,2017
Allerdale Borough Council,15506,Supplies & Services,Housing & Health Pay Group,Professional Services,20/12/2017,292139,1480.00,Redacted information - included personal information ,A00206,9,2017
Allerdale Borough Council,12201,Premises,Multi Storey Car Park Utilities & Maint,Internal Maintenance,20/12/2017,292140,1133.12,WF SUPPORT SERVICES LTD,C00013,9,2017
Allerdale Borough Council,12201,Premises,Multi Storey Car Park Utilities & Maint,Internal Maintenance,20/12/2017,292141,238.96,WF SUPPORT SERVICES LTD,C00013,9,2017
Allerdale Borough Council,20150,Third Party Payments,Corporate Property Maintenance,General Partnership Service Fees,10/01/2018,292142,260.71,ORIAN SOLUTIONS LTD,A01814,9,2017
Allerdale Borough Council,15506,Supplies & Services,Gypsy & Traveller Sites,Professional Services,20/12/2017,292143,1360.00,Redacted information - included personal information ,A02490,9,2017
Allerdale Borough Council,10401,Employee Costs,Housing & Health Pay Group,Agency Staff Costs,10/01/2018,292144,242.00,HAYS SPECIALIST RECRUITMENT LTD,A00280,9,2017
Allerdale Borough Council,12302,Premises,Solway Coast AONB Core Funding,Building Cleaning,10/01/2018,292145,105.27,ORIAN SOLUTIONS LTD,A01814,9,2017
Allerdale Borough Council,15508,Supplies & Services,Licensing Service,Subscriptions,20/12/2017,292146,100.00,HILLS BOOKS LTD,A00271,9,2017
Allerdale Borough Council,51101,Capital Expenditure,Central Heating Fund,External Contractor Payments (Capital),20/12/2017,292147,4800.00,PACIFICA HOME SERVICES ,C00206,9,2017
Allerdale Borough Council,15404,Supplies & Services,Legal Services,Reference Materials,20/12/2017,292148,1150.00,Redacted information - included personal information ,A00028,9,2017
Allerdale Borough Council,16150,Supplies & Services,Town Centre Management,General Promotions,20/12/2017,292149,68.00,POD (NORTH WEST) LIMITED,A01977,9,2017
Allerdale Borough Council,16150,Supplies & Services,Town Centre Management,General Promotions,20/12/2017,292150,240.00,POD (NORTH WEST) LIMITED,A01977,9,2017
Allerdale Borough Council,12301,Premises,Corporate Property Maintenance,Security,20/12/2017,292151,11.52,G4S SECURE SOLUTIONS,A01597,9,2017
Allerdale Borough Council,12301,Premises,Corporate Property Maintenance,Security,20/12/2017,292152,105.20,G4S SECURE SOLUTIONS,A01597,9,2017
Allerdale Borough Council,10501,Employee Costs,Corporate Recruitment,Advertising Vacancies,20/12/2017,292153,166.00,CUMBRIAN NEWSPAPERS LIMITED,A00869,9,2017
Allerdale Borough Council,15904,Supplies & Services,Members Services,Training,20/12/2017,292154,85.00,IMPROVEMENT & DEVELOPMENT AGENCY,A00484,9,2017
Allerdale Borough Council,15904,Supplies & Services,Members Services,Training,20/12/2017,292155,170.00,IMPROVEMENT & DEVELOPMENT AGENCY,A00484,9,2017
Allerdale Borough Council,14101,Transport,Homelessness,Vehicle Leasing,20/12/2017,292156,171.74,DOBIES VAUXHALL,A00254,9,2017
Allerdale Borough Council,15101,Supplies & Services,Public Convenience Cleaning,Equipment Costs,20/12/2017,292157,37.80,INSTOCK (CHANDLERS),A00050,9,2017
Allerdale Borough Council,10601,Employee Costs,Chief Executive,External Courses & Seminar Fees,20/12/2017,292158,450.08,SOUTH LAKELAND DISTRICT COUNCIL,A00569,9,2017
Allerdale Borough Council,16302,Supplies & Services,Members Services,Room Hire,20/12/2017,292159,88.00,GREENWICH LEISURE LTD (PREV CARLISLE LEISURE),A00136,9,2017
Allerdale Borough Council,15401,Supplies & Services,Corporate Postage and Stationary,General Stationery,20/12/2017,292160,267.50,ANTALIS LIMITED,A00122,9,2017
Allerdale Borough Council,14202,Transport,Chief Executive,Hire Car and petrol,20/12/2017,292161,238.16,ENTERPRISE RENT A CAR,A01367,9,2017
Allerdale Borough Council,12408,Premises,Corporate Property Maintenance,Water & Sewage,20/12/2017,292162,234.96,UNITED UTILITIES,X00011,9,2017
Allerdale Borough Council,12408,Premises,Corporate Property Maintenance,Water & Sewage,20/12/2017,292163,5.48,UNITED UTILITIES,X00011,9,2017
Allerdale Borough Council,12408,Premises,Corporate Property Maintenance,Water & Sewage,20/12/2017,292164,-705.22,UNITED UTILITIES,X00011,9,2017
Allerdale Borough Council,12408,Premises,Public Convenience Cleaning,Water & Sewage,20/12/2017,292165,10.37,UNITED UTILITIES,X00011,9,2017
Allerdale Borough Council,12408,Premises,Corporate Property Maintenance,Water & Sewage,20/12/2017,292166,136.99,UNITED UTILITIES,X00011,9,2017
Allerdale Borough Council,12408,Premises,Public Convenience Cleaning,Water & Sewage,20/12/2017,292167,132.93,UNITED UTILITIES,X00011,9,2017
Allerdale Borough Council,12408,Premises,Public Convenience Cleaning,Water & Sewage,20/12/2017,292168,217.90,UNITED UTILITIES,X00011,9,2017
Allerdale Borough Council,12402,Premises,Homelessness,Electricity,20/12/2017,292169,9.50,N POWER,X00262,9,2017
Allerdale Borough Council,12402,Premises,Homelessness,Electricity,20/12/2017,292170,104.70,N POWER,X00262,9,2017
Allerdale Borough Council,12402,Premises,Homelessness,Electricity,20/12/2017,292171,94.58,N POWER,X00262,9,2017
Allerdale Borough Council,12402,Premises,Homelessness,Electricity,20/12/2017,292172,44.43,N POWER,X00262,9,2017
Allerdale Borough Council,12402,Premises,Corporate Property Maintenance,Electricity,20/12/2017,292173,80.40,TOTAL GAS & POWER LIMITED,X00253,9,2017
Allerdale Borough Council,12402,Premises,Corporate Property Maintenance,Electricity,20/12/2017,292174,4450.70,N POWER ,X00015,9,2017
Allerdale Borough Council,12402,Premises,Corporate Property Maintenance,Electricity,20/12/2017,292175,556.03,N POWER ,X00015,9,2017
Allerdale Borough Council,12402,Premises,Corporate Property Maintenance,Electricity,20/12/2017,292176,2114.67,N POWER ,X00015,9,2017
Allerdale Borough Council,12402,Premises,Multi Storey Car Park Utilities & Maint,Electricity,20/12/2017,292177,1492.30,N POWER ,X00015,9,2017
Allerdale Borough Council,12408,Premises,Corporate Property Maintenance,Water & Sewage,20/12/2017,292178,705.22,UNITED UTILITIES,X00011,9,2017
Allerdale Borough Council,12402,Premises,Homelessness,Electricity,20/12/2017,292179,15.36,N POWER,X00262,9,2017
Allerdale Borough Council,14101,Transport,Mayoral Services,Vehicle Leasing,20/12/2017,292180,1430.00,Redacted information - included personal information ,A02440,9,2017
Allerdale Borough Council,15508,Supplies & Services,Corporate Improvement Team,Subscriptions,20/12/2017,292181,2495.00,LOCAL INFORMATION UNIT LTD,A01881,9,2017
Allerdale Borough Council,15514,Supplies & Services,Mayor's Fund,Public Entertainment,20/12/2017,292182,75.00,Redacted information - included personal information ,A00627,9,2017
Allerdale Borough Council,15103,Supplies & Services,Pest Control,Purchase of Materials,10/01/2018,292183,285.89,KILLGERM CHEMICALS LTD,A00361,9,2017
Allerdale Borough Council,15508,Supplies & Services,Corporate Improvement Team,Subscriptions,20/12/2017,292184,1166.93,CUMBRIA CC,A00066,9,2017
Allerdale Borough Council,16350,Supplies & Services,Museums,Miscellaneous Expenses,20/12/2017,292185,1500.00,ARTLINK TRANSPORT & STORAGE LTD,A02362,9,2017
Allerdale Borough Council,15501,Supplies & Services,Planning and Development,Consultants Fees,20/12/2017,292186,75.00,SWH SURVEYS LIMITED,A01968,9,2017
Allerdale Borough Council,20304,Third Party Payments,Recycling,Contract Services-Recycling,20/12/2017,292187,370979.41,FCC ENVIRONMENT SERVICES (FOCSA),A00085,9,2017
Allerdale Borough Council,33104,Income,Bereavement Services,Cemetery Granting of Burial Right Income,20/12/2017,292188,796.00,CARLISLE CITY COUNCIL,A00161,9,2017
Allerdale Borough Council,33104,Income,Bereavement Services,Cemetery Granting of Burial Right Income,20/12/2017,292189,26.00,CARLISLE CITY COUNCIL,A00161,9,2017
Allerdale Borough Council,15405,Supplies & Services,Domestic Waste,Use of External Printers,20/12/2017,292190,193.00,FIRPRESS PRINTERS,A00063,9,2017
Allerdale Borough Council,16003,Supplies & Services,Off-street - Owned,Security of Cash Movements,20/12/2017,292191,27.50,G4S CASH SOLUTIONS (UK) LTD,A02421,9,2017
Allerdale Borough Council,16003,Supplies & Services,Off-street - Owned,Security of Cash Movements,20/12/2017,292192,727.04,G4S CASH SOLUTIONS (UK) LTD,A02421,9,2017
Allerdale Borough Council,12305,Premises,Corporate Property Maintenance,Inspections and Services,20/12/2017,292193,91.00,REFRIGERATION (MITTON) LTD,C00012,9,2017
Allerdale Borough Council,15500,Supplies & Services,Customer Services Pay Group,Budget-Services,20/12/2017,292194,300.00,IMPACT HOUSING ASSOCIATION LTD,A00236,9,2017
Allerdale Borough Council,35106,Income,Homelessness,Dwellings Income,20/12/2017,292204,31.14,ALLERDALE - CASH OFFICE BACS PAYMENTS,A00342,9,2017
Allerdale Borough Council,14101,Transport,Community Services Pay Group,Vehicle Leasing,20/12/2017,292205,66.36,Redacted information - included personal information ,A02368,9,2017
Allerdale Borough Council,15301,Supplies & Services,Workington Nature Partnership,Uniforms,20/12/2017,292206,273.75,KELTIC,A00017,9,2017
Allerdale Borough Council,15500,Supplies & Services,Customer Services Pay Group,Budget-Services,20/12/2017,292207,50.00,CITIZENS ADVICE BUREAU,A01181,9,2017
Allerdale Borough Council,15810,Supplies & Services,Arcus,Software Licences,20/12/2017,292208,15000.00,ARCUS GLOBAL LTD,A02496,9,2017
Allerdale Borough Council,15400,Supplies & Services,Customer Services Pay Group,"Budget-Printing,Stationery & Office Supp",20/12/2017,292209,71.40,K&R BADGES LIMITED,A01328,9,2017
Allerdale Borough Council,15810,Supplies & Services,Arcus,Software Licences,20/12/2017,292210,14800.00,ARCUS GLOBAL LTD,A02496,9,2017
Allerdale Borough Council,15301,Supplies & Services,Community Services Pay Group,Uniforms,20/12/2017,292216,786.85,KELTIC,A00017,9,2017
Allerdale Borough Council,16150,Supplies & Services,Town Centre Management,General Promotions,20/12/2017,292217,200.00,HER CITI,A00441,9,2017
Allerdale Borough Council,54105,Capital Expenditure,Disabled Facilities Grants,Grants  Private Individuals (Capital),20/12/2017,292218,3465.77,PARTNERSHIP IN PROPERTY MANAGEMENT LTD,X00120,9,2017
Allerdale Borough Council,54105,Capital Expenditure,Disabled Facilities Grants,Grants  Private Individuals (Capital),20/12/2017,292219,4371.15,MAYSON BROS LTD,X00132,9,2017
Allerdale Borough Council,54105,Capital Expenditure,Disabled Facilities Grants,Grants  Private Individuals (Capital),20/12/2017,292220,6475.80,L.E.A. BUILDING SERVICES LTD,X00264,9,2017
Allerdale Borough Council,20150,Third Party Payments,Managed Car Parks,General Partnership Service Fees,20/12/2017,292221,720.40,KESWICK CONVENTION TRUST,A02390,9,2017
Allerdale Borough Council,20150,Third Party Payments,Managed Car Parks,General Partnership Service Fees,20/12/2017,292222,470.62,KESWICK CONVENTION TRUST,A02390,9,2017
Allerdale Borough Council,20150,Third Party Payments,Managed Car Parks,General Partnership Service Fees,20/12/2017,292223,78.80,KESWICK CONVENTION TRUST,A02390,9,2017
Allerdale Borough Council,20150,Third Party Payments,Managed Car Parks,General Partnership Service Fees,20/12/2017,292224,631.15,KESWICK CONVENTION TRUST,A02390,9,2017
Allerdale Borough Council,33113,Income,Building Control - Chargeable,Building Control Fees Income,20/12/2017,292225,50.00,Redacted information - included personal information ,M01280,9,2017
Allerdale Borough Council,15601,Supplies & Services,Electoral Registration,Postage,20/12/2017,292226,618.12,ROYAL MAIL LETTERS,X00021,9,2017
Allerdale Borough Council,15810,Supplies & Services,IT Services,Software Licences,20/12/2017,292227,720.00,VAADHOO LIMITED,A02268,9,2017
Allerdale Borough Council,15502,Supplies & Services,Housing & Health Pay Group,Land Registry Fees,,292228,54.00,HM LAND REGISTRY ,A00505,9,2017
Allerdale Borough Council,21150,Transfer Payments,Museums,General Grants,20/12/2017,292229,1000.00,KESWICK MUSEUM & ART GALLERY,A00337,9,2017
Allerdale Borough Council,15501,Supplies & Services,Off-street - Owned,Consultants Fees,20/12/2017,292230,1050.00,UNITY RECRUITMENT,A02500,9,2017
Allerdale Borough Council,15501,Supplies & Services,Off-street - Owned,Consultants Fees,20/12/2017,292231,3150.00,UNITY RECRUITMENT,A02500,9,2017
Allerdale Borough Council,10401,Employee Costs,Land Charges Service,Agency Staff Costs,20/12/2017,292232,510.60,ADECCO RECRUITMENT,A00188,9,2017
Allerdale Borough Council,15101,Supplies & Services,Off-street - Owned,Equipment Costs,20/12/2017,292233,232.00,METRIC GROUP LTD,A00568,9,2017
Allerdale Borough Council,10604,Employee Costs,Health & Well-being Group,Hire of Training Rooms/Venues,20/12/2017,292234,318.00,ST MICHAELS CHURCH,A00452,9,2017
Allerdale Borough Council,15505,Supplies & Services,Licensing Service,Licences,10/01/2018,292235,94.40,NEWAUTO LTD T/A MOGO UK,A00303,9,2017
Allerdale Borough Council,15507,Supplies & Services,Land Charges Service,Searches,20/12/2017,292236,2185.10,CUMBRIA CC ,A00066,9,2017
Allerdale Borough Council,15507,Supplies & Services,Land Charges Service,Searches,20/12/2017,292237,2173.90,CUMBRIA CC,A00066,9,2017
Allerdale Borough Council,12405,Premises,Homelessness,Rentals and Lease Charges,20/12/2017,292238,6064.50,CASTLES & COASTS HOUSING ASSOCIATION LTD,A02465,9,2017
Allerdale Borough Council,15507,Supplies & Services,Land Charges Service,Searches,20/12/2017,292239,2427.20,CUMBRIA CC ,A00066,9,2017
Allerdale Borough Council,15601,Supplies & Services,Corporate Postage and Stationary,Postage,20/12/2017,292240,1105.80,ROYAL MAIL LETTERS,X00021,9,2017
Allerdale Borough Council,14105,Transport,Community Services Pay Group,"Fuel, Lubricants & Consumables",,292241,527.30,BP OIL UK LTD ,X00022,9,2017
Allerdale Borough Council,14105,Transport,Community Services Pay Group,"Fuel, Lubricants & Consumables",,292242,598.90,BP OIL UK LTD ,X00022,9,2017
Allerdale Borough Council,14105,Transport,Community Services Pay Group,"Fuel, Lubricants & Consumables",,292243,476.36,BP OIL UK LTD ,X00022,9,2017
Allerdale Borough Council,75103,Holding and Control Accounts,Payroll Suspense Account,PAYROLL December 17 Travel & Subsistence  ,,,13688.07,INLAND REVENUE,X00038,9,2017
